[Event "Titled Tuesday Blitz July 13 2021"]
[White "Buscar, Michael"]
[Black "Siniauski, Artsiom"]
[WhiteFideId "2603616"]
[BlackFideId "13512269"]
[WhiteElo "2010"]
[BlackElo "2210"]
[Result "0-1"]
[Round "04"]
[TimeControl "180+1"]
[Date "2021.07.13"]
[WhiteClock "0:00:07"]
[BlackClock "0:00:45"]

1. d4 {[%clk 0:03:00]}  Nf6 {[%clk 0:02:57]} 2. c4 {[%clk 0:02:58]}  e6 {[%clk 0:02:57]} 3. Nc3 {[%clk 0:02:57]}  Bb4 {[%clk 0:02:57]} 4. e3 {[%clk 0:02:58]}  c5 {[%clk 0:02:53]} 5. Bd3 {[%clk 0:02:56]}  cxd4 {[%clk 0:02:50]} 6. exd4 {[%clk 0:02:57]}  d5 {[%clk 0:02:50]} 7. Nf3 {[%clk 0:02:56]}  O-O {[%clk 0:02:48]} 8. O-O {[%clk 0:02:56]}  dxc4 {[%clk 0:02:47]} 9. Bxc4 {[%clk 0:02:57]}  Nc6 {[%clk 0:02:47]} 10. Bd3 {[%clk 0:02:54]}  h6 {[%clk 0:02:44]} 11. Bc2 {[%clk 0:02:54]}  Ne7 {[%clk 0:02:37]} 12. Qd3 {[%clk 0:02:52]}  Bxc3 {[%clk 0:02:31]} 13. bxc3 {[%clk 0:02:50]}  b6 {[%clk 0:02:31]} 14. Ba3 {[%clk 0:02:44]}  Bb7 {[%clk 0:02:28]} 15. Ne5 {[%clk 0:02:42]}  Be4 {[%clk 0:02:21]} 16. Qe2 {[%clk 0:02:38]}  Bxc2 {[%clk 0:02:21]} 17. Qxc2 {[%clk 0:02:39]}  Re8 {[%clk 0:02:20]} 18. Rfd1 {[%clk 0:02:25]}  Rc8 {[%clk 0:02:18]} 19. Rac1 {[%clk 0:02:22]}  Nf5 {[%clk 0:02:18]} 20. Qa4 {[%clk 0:02:17]}  Qc7 {[%clk 0:02:11]} 21. h3 {[%clk 0:02:01]}  Red8 {[%clk 0:02:11]} 22. Rd3 {[%clk 0:01:21]}  Ne4 {[%clk 0:02:05]} 23. Qb3 {[%clk 0:00:47]}  Ned6 {[%clk 0:01:57]} 24. c4 {[%clk 0:00:41]}  Ne4 {[%clk 0:01:53]} 25. c5 {[%clk 0:00:36]}  Nxd4 {[%clk 0:01:37]} 26. Rxd4 {[%clk 0:00:19]}  Rxd4 {[%clk 0:01:37]} 27. Nf3 {[%clk 0:00:19]}  Rdd8 {[%clk 0:01:25]} 28. cxb6 {[%clk 0:00:19]}  Qxb6 {[%clk 0:01:05]} 29. Rxc8 {[%clk 0:00:17]}  Rxc8 {[%clk 0:01:04]} 30. Qd3 {[%clk 0:00:16]}  Qxf2+ {[%clk 0:01:03]} 31. Kh2 {[%clk 0:00:16]}  Rc2 {[%clk 0:01:00]} 32. Nh4 {[%clk 0:00:08]}  Qf4+ {[%clk 0:00:53]} 33. Kg1 {[%clk 0:00:07]}  Rd2 {[%clk 0:00:45]} 0-1


[Site "https://www.chess.com"]

[Event "Titled Tuesday Blitz July 13 2021"]
[White "Cunjalo, Faris"]
[Black "Madaminov, Mukhiddin"]
[WhiteFideId "14410710"]
[BlackFideId "14210703"]
[WhiteElo "2234"]
[BlackElo "1747"]
[Result "1-0"]
[Round "04"]
[TimeControl "180+1"]
[Date "2021.07.13"]
[WhiteClock "0:00:51"]
[BlackClock "0:00:19"]

1. c4 {[%clk 0:03:00]}  e5 {[%clk 0:02:59]} 2. g3 {[%clk 0:03:00]}  Nc6 {[%clk 0:02:57]} 3. Bg2 {[%clk 0:02:59]}  Bc5 {[%clk 0:02:58]} 4. Nc3 {[%clk 0:02:56]}  d6 {[%clk 0:02:55]} 5. e3 {[%clk 0:02:55]}  a6 {[%clk 0:02:52]} 6. Nf3 {[%clk 0:02:52]}  Nf6 {[%clk 0:02:48]} 7. d4 {[%clk 0:02:51]}  Ba7 {[%clk 0:02:47]} 8. h3 {[%clk 0:02:50]}  O-O {[%clk 0:02:43]} 9. O-O {[%clk 0:02:49]}  Re8 {[%clk 0:02:42]} 10. dxe5 {[%clk 0:02:46]}  Nxe5 {[%clk 0:02:40]} 11. b3 {[%clk 0:02:41]}  Bf5 {[%clk 0:02:35]} 12. Nd4 {[%clk 0:02:31]}  Bd3 {[%clk 0:02:31]} 13. Re1 {[%clk 0:02:29]}  Bg6 {[%clk 0:02:08]} 14. Bxb7 {[%clk 0:02:27]}  Rb8 {[%clk 0:02:08]} 15. Bg2 {[%clk 0:02:25]}  Qd7 {[%clk 0:01:54]} 16. e4 {[%clk 0:02:07]}  Bxd4 {[%clk 0:01:42]} 17. Qxd4 {[%clk 0:02:06]}  Qxh3 {[%clk 0:01:42]} 18. Bg5 {[%clk 0:01:44]}  Qg4 {[%clk 0:01:21]} 19. Bxf6 {[%clk 0:01:43]}  gxf6 {[%clk 0:01:22]} 20. Nd5 {[%clk 0:01:43]}  Kg7 {[%clk 0:00:47]} 21. Re3 {[%clk 0:01:42]}  c6 {[%clk 0:00:45]} 22. Nc3 {[%clk 0:01:38]}  Rbd8 {[%clk 0:00:44]} 23. f4 {[%clk 0:01:23]}  Nd7 {[%clk 0:00:44]} 24. Qxd6 {[%clk 0:01:22]}  Ne5 {[%clk 0:00:44]} 25. Qc5 {[%clk 0:01:08]}  Nd3 {[%clk 0:00:44]} 26. Qxc6 {[%clk 0:01:09]}  Nxf4 {[%clk 0:00:38]} 27. gxf4 {[%clk 0:01:08]}  Rd2 {[%clk 0:00:39]} 28. e5 {[%clk 0:01:04]}  Qxf4 {[%clk 0:00:38]} 29. Qf3 {[%clk 0:01:03]}  Qd4 {[%clk 0:00:37]} 30. exf6+ {[%clk 0:00:59]}  Kf8 {[%clk 0:00:33]} 31. Re1 {[%clk 0:00:57]}  Rd3 {[%clk 0:00:31]} 32. Nd5 {[%clk 0:00:56]}  Be4 {[%clk 0:00:27]} 33. Qg3 {[%clk 0:00:56]}  Bg6 {[%clk 0:00:21]} 34. Kh2 {[%clk 0:00:55]}  Rdxe3 {[%clk 0:00:20]} 35. Rxe3 {[%clk 0:00:54]}  Rd8 {[%clk 0:00:19]} 36. Qc7 {[%clk 0:00:51]} 1-0


[Site "https://www.chess.com"]

[Event "Titled Tuesday Blitz July 13 2021"]
[White "Darini, Pouria"]
[Black "Howell, David W L"]
[WhiteFideId "12502200"]
[BlackFideId "410608"]
[WhiteElo "2489"]
[BlackElo "2643"]
[Result "0-1"]
[Round "04"]
[TimeControl "180+1"]
[Date "2021.07.13"]
[WhiteClock "0:00:01"]
[BlackClock "0:00:36"]

1. e4 {[%clk 0:03:00]}  c5 {[%clk 0:02:55]} 2. Nf3 {[%clk 0:03:00]}  e6 {[%clk 0:02:54]} 3. d4 {[%clk 0:02:59]}  cxd4 {[%clk 0:02:54]} 4. Nxd4 {[%clk 0:02:59]}  Nf6 {[%clk 0:02:54]} 5. Nc3 {[%clk 0:03:00]}  Nc6 {[%clk 0:02:53]} 6. Be2 {[%clk 0:02:52]}  Bb4 {[%clk 0:02:51]} 7. Qd3 {[%clk 0:02:36]}  O-O {[%clk 0:02:45]} 8. O-O {[%clk 0:02:30]}  d6 {[%clk 0:02:36]} 9. Nxc6 {[%clk 0:02:17]}  bxc6 {[%clk 0:02:37]} 10. Bg5 {[%clk 0:02:18]}  Bxc3 {[%clk 0:02:16]} 11. bxc3 {[%clk 0:02:17]}  h6 {[%clk 0:01:57]} 12. Bh4 {[%clk 0:02:17]}  g5 {[%clk 0:01:49]} 13. Bg3 {[%clk 0:02:17]}  e5 {[%clk 0:01:50]} 14. Rfd1 {[%clk 0:02:03]}  Be6 {[%clk 0:01:39]} 15. h4 {[%clk 0:01:44]}  Qe7 {[%clk 0:01:33]} 16. hxg5 {[%clk 0:01:23]}  hxg5 {[%clk 0:01:34]} 17. Qe3 {[%clk 0:00:57]}  Nd7 {[%clk 0:01:26]} 18. f3 {[%clk 0:00:55]}  f6 {[%clk 0:01:23]} 19. Qd2 {[%clk 0:00:33]}  d5 {[%clk 0:01:20]} 20. exd5 {[%clk 0:00:33]}  cxd5 {[%clk 0:01:21]} 21. c4 {[%clk 0:00:31]}  dxc4 {[%clk 0:01:15]} 22. Qd6 {[%clk 0:00:31]}  Rfe8 {[%clk 0:01:11]} 23. Bxc4 {[%clk 0:00:20]}  Bxc4 {[%clk 0:01:04]} 24. Qxd7 {[%clk 0:00:20]}  Be6 {[%clk 0:01:04]} 25. Qxe7 {[%clk 0:00:20]}  Rxe7 {[%clk 0:01:05]} 26. Rd6 {[%clk 0:00:20]}  Kf7 {[%clk 0:01:05]} 27. Bf2 {[%clk 0:00:18]}  Rc8 {[%clk 0:01:05]} 28. Ra6 {[%clk 0:00:13]}  Rxc2 {[%clk 0:01:04]} 29. Rxa7 {[%clk 0:00:11]}  Rxa7 {[%clk 0:01:04]} 30. Bxa7 {[%clk 0:00:12]}  Bxa2 {[%clk 0:01:04]} 31. Bf2 {[%clk 0:00:08]}  Kg6 {[%clk 0:01:02]} 32. Be3 {[%clk 0:00:05]}  Re2 {[%clk 0:01:01]} 33. Bc5 {[%clk 0:00:04]}  Kf5 {[%clk 0:01:00]} 34. Bf2 {[%clk 0:00:04]}  g4 {[%clk 0:01:00]} 35. fxg4+ {[%clk 0:00:03]}  Kxg4 {[%clk 0:01:01]} 36. Re1 {[%clk 0:00:03]}  Rb2 {[%clk 0:00:58]} 37. Re3 {[%clk 0:00:04]}  Bd5 {[%clk 0:00:57]} 38. Rg3+ {[%clk 0:00:04]}  Kf5 {[%clk 0:00:58]} 39. Rg7 {[%clk 0:00:04]}  Rb1+ {[%clk 0:00:56]} 40. Kh2 {[%clk 0:00:04]}  Rb8 {[%clk 0:00:57]} 41. Bh4 {[%clk 0:00:04]}  Rh8 {[%clk 0:00:56]} 42. g3 {[%clk 0:00:04]}  Ra8 {[%clk 0:00:55]} 43. g4+ {[%clk 0:00:03]}  Kf4 {[%clk 0:00:44]} 44. Bxf6 {[%clk 0:00:02]}  Ra1 {[%clk 0:00:45]} 45. Bxe5+ {[%clk 0:00:01]}  Kxe5 {[%clk 0:00:46]} 46. Rg5+ {[%clk 0:00:02]}  Ke4 {[%clk 0:00:45]} 47. Rf5 {[%clk 0:00:02]}  Be6 {[%clk 0:00:41]} 48. Rf8 {[%clk 0:00:02]}  Bxg4 {[%clk 0:00:39]} 49. Kg3 {[%clk 0:00:03]}  Be6 {[%clk 0:00:38]} 50. Rf4+ {[%clk 0:00:03]}  Ke5 {[%clk 0:00:38]} 51. Rf2 {[%clk 0:00:03]}  Bc4 {[%clk 0:00:37]} 52. Rf8 {[%clk 0:00:01]}  Rg1+ {[%clk 0:00:36]} 53. Kf2 {[%clk 0:00:01]}  Rf1+ {[%clk 0:00:36]} 54. Ke3 {[%clk 0:00:01]}  Rxf8 {[%clk 0:00:36]} 0-1


[Site "https://www.chess.com"]

[Event "Titled Tuesday Blitz July 13 2021"]
[White "Deviprasath, Sharvesh"]
[Black "Tejedor Fuente, Enrique"]
[WhiteFideId "30938228"]
[BlackFideId "2299100"]
[WhiteElo "2102"]
[BlackElo "2535"]
[Result "0-1"]
[Round "04"]
[TimeControl "180+1"]
[Date "2021.07.13"]
[WhiteClock "0:00:11"]
[BlackClock "0:00:05"]

1. Nf3 {[%clk 0:02:18]}  d5 {[%clk 0:02:12]} 2. c4 {[%clk 0:02:19]}  e6 {[%clk 0:02:06]} 3. e3 {[%clk 0:02:19]}  Nf6 {[%clk 0:01:59]} 4. Nc3 {[%clk 0:02:07]}  c5 {[%clk 0:01:59]} 5. cxd5 {[%clk 0:02:07]}  exd5 {[%clk 0:01:59]} 6. d4 {[%clk 0:02:07]}  Nc6 {[%clk 0:01:58]} 7. Bb5 {[%clk 0:02:07]}  cxd4 {[%clk 0:01:44]} 8. Nxd4 {[%clk 0:02:08]}  Bd7 {[%clk 0:01:45]} 9. O-O {[%clk 0:01:51]}  Bd6 {[%clk 0:01:41]} 10. b3 {[%clk 0:01:22]}  O-O {[%clk 0:01:39]} 11. Bb2 {[%clk 0:01:21]}  Rc8 {[%clk 0:00:54]} 12. Rc1 {[%clk 0:00:41]}  a6 {[%clk 0:00:45]} 13. Be2 {[%clk 0:00:34]}  Qc7 {[%clk 0:00:40]} 14. g3 {[%clk 0:00:32]}  Rfd8 {[%clk 0:00:33]} 15. Bf3 {[%clk 0:00:27]}  Bh3 {[%clk 0:00:30]} 16. Re1 {[%clk 0:00:27]}  Be7 {[%clk 0:00:27]} 17. Qd2 {[%clk 0:00:25]}  Qb8 {[%clk 0:00:27]} 18. Red1 {[%clk 0:00:22]}  Ne5 {[%clk 0:00:27]} 19. Bh1 {[%clk 0:00:20]}  h6 {[%clk 0:00:27]} 20. Nde2 {[%clk 0:00:20]}  Bg4 {[%clk 0:00:27]} 21. Bg2 {[%clk 0:00:18]}  Nf3+ {[%clk 0:00:27]} 22. Bxf3 {[%clk 0:00:18]}  Bxf3 {[%clk 0:00:28]} 23. Re1 {[%clk 0:00:17]}  Bg4 {[%clk 0:00:26]} 24. Nf4 {[%clk 0:00:17]}  Bb4 {[%clk 0:00:23]} 25. a3 {[%clk 0:00:16]}  Ba5 {[%clk 0:00:17]} 26. b4 {[%clk 0:00:16]}  Bb6 {[%clk 0:00:17]} 27. Ncxd5 {[%clk 0:00:16]}  Nxd5 {[%clk 0:00:17]} 28. Nxd5 {[%clk 0:00:17]}  Rxc1 {[%clk 0:00:16]} 29. Rxc1 {[%clk 0:00:18]}  Qd6 {[%clk 0:00:04]} 30. Qc3 {[%clk 0:00:15]}  f6 {[%clk 0:00:04]} 31. Nf4 {[%clk 0:00:13]}  Bf3 {[%clk 0:00:03]} 32. Ng2 {[%clk 0:00:12]}  Qe6 {[%clk 0:00:02]} 33. Nf4 {[%clk 0:00:10]}  Qd7 {[%clk 0:00:02]} 34. Qc4+ {[%clk 0:00:10]}  Kh7 {[%clk 0:00:02]} 35. Qc2+ {[%clk 0:00:10]}  Kg8 {[%clk 0:00:02]} 36. Rf1 {[%clk 0:00:08]}  Bc6 {[%clk 0:00:01]} 37. Qg6 {[%clk 0:00:07]}  Qf7 {[%clk 0:00:02]} 38. Qxf7+ {[%clk 0:00:06]}  Kxf7 {[%clk 0:00:03]} 39. h4 {[%clk 0:00:07]}  g5 {[%clk 0:00:03]} 40. hxg5 {[%clk 0:00:08]}  hxg5 {[%clk 0:00:03]} 41. Nh5 {[%clk 0:00:08]}  Rh8 {[%clk 0:00:04]} 42. g4 {[%clk 0:00:08]}  Rh6 {[%clk 0:00:04]} 43. Bxf6 {[%clk 0:00:07]}  Rxf6 {[%clk 0:00:02]} 44. Nxf6 {[%clk 0:00:08]}  Kxf6 {[%clk 0:00:03]} 45. Rd1 {[%clk 0:00:09]}  Bc7 {[%clk 0:00:02]} 46. Kf1 {[%clk 0:00:09]}  Bf3 {[%clk 0:00:01]} 47. Rd2 {[%clk 0:00:09]}  Bxg4 {[%clk 0:00:01]} 48. Rd4 {[%clk 0:00:09]}  Bf5 {[%clk 0:00:01]} 49. Rc4 {[%clk 0:00:10]}  Bd6 {[%clk 0:00:02]} 50. Rd4 {[%clk 0:00:10]}  Ke7 {[%clk 0:00:02]} 51. Rd5 {[%clk 0:00:10]}  Ke6 {[%clk 0:00:02]} 52. Rd2 {[%clk 0:00:10]}  Be4 {[%clk 0:00:02]} 53. Rd4 {[%clk 0:00:10]}  Ke5 {[%clk 0:00:02]} 54. Rd1 {[%clk 0:00:09]}  Bc6 {[%clk 0:00:02]} 55. Rc1 {[%clk 0:00:10]}  Ke6 {[%clk 0:00:02]} 56. Rc3 {[%clk 0:00:10]}  Bb5+ {[%clk 0:00:03]} 57. Ke1 {[%clk 0:00:10]}  Be5 {[%clk 0:00:04]} 58. Rc1 {[%clk 0:00:09]}  Bd6 {[%clk 0:00:04]} 59. Rb1 {[%clk 0:00:10]}  Bd7 {[%clk 0:00:04]} 60. Ra1 {[%clk 0:00:10]}  Be5 {[%clk 0:00:05]} 61. Rb1 {[%clk 0:00:10]}  Ke7 {[%clk 0:00:04]} 62. Rd1 {[%clk 0:00:10]}  Be6 {[%clk 0:00:05]} 63. Ke2 {[%clk 0:00:11]}  Bg4+ {[%clk 0:00:04]} 64. f3 {[%clk 0:00:11]}  Be6 {[%clk 0:00:04]} 65. Rg1 {[%clk 0:00:11]}  Kf6 {[%clk 0:00:05]} 66. e4 {[%clk 0:00:09]}  Bb2 {[%clk 0:00:05]} 67. a4 {[%clk 0:00:08]}  Bc3 {[%clk 0:00:05]} 68. b5 {[%clk 0:00:09]}  axb5 {[%clk 0:00:05]} 69. axb5 {[%clk 0:00:09]}  Bc4+ {[%clk 0:00:06]} 70. Kd1 {[%clk 0:00:10]}  Bxb5 {[%clk 0:00:06]} 71. Kc2 {[%clk 0:00:11]}  Be5 {[%clk 0:00:06]} 72. Rb1 {[%clk 0:00:11]}  Bc6 {[%clk 0:00:06]} 73. Rb6 {[%clk 0:00:11]}  Bd4 {[%clk 0:00:05]} 74. Rb4 {[%clk 0:00:11]}  Ke5 {[%clk 0:00:06]} 75. Kd3 {[%clk 0:00:09]}  Bc5 {[%clk 0:00:06]} 76. f4+ {[%clk 0:00:10]}  gxf4 {[%clk 0:00:05]} 77. Rc4 {[%clk 0:00:11]}  Bb5 {[%clk 0:00:05]} 0-1


[Site "https://www.chess.com"]

[Event "Titled Tuesday Blitz July 13 2021"]
[White "Dobrowolski, Piotr"]
[Black "Dudzinski, Pawel"]
[WhiteFideId "1106236"]
[BlackFideId "1117890"]
[WhiteElo "2304"]
[BlackElo "2193"]
[Result "1-0"]
[Round "04"]
[TimeControl "180+1"]
[Date "2021.07.13"]
[WhiteClock "0:00:48"]
[BlackClock "0:00:06"]

1. e4 {[%clk 0:03:00]}  c6 {[%clk 0:02:59]} 2. c4 {[%clk 0:02:58]}  d5 {[%clk 0:02:58]} 3. cxd5 {[%clk 0:02:57]}  cxd5 {[%clk 0:02:59]} 4. exd5 {[%clk 0:02:57]}  Qxd5 {[%clk 0:02:55]} 5. Nc3 {[%clk 0:02:57]}  Qd8 {[%clk 0:02:56]} 6. d4 {[%clk 0:02:57]}  Nf6 {[%clk 0:02:56]} 7. Nf3 {[%clk 0:02:57]}  e6 {[%clk 0:02:57]} 8. Bc4 {[%clk 0:02:56]}  Be7 {[%clk 0:02:57]} 9. O-O {[%clk 0:02:56]}  O-O {[%clk 0:02:57]} 10. Re1 {[%clk 0:02:56]}  a6 {[%clk 0:02:57]} 11. a3 {[%clk 0:02:55]}  b5 {[%clk 0:02:57]} 12. Ba2 {[%clk 0:02:55]}  Bb7 {[%clk 0:02:58]} 13. Qd3 {[%clk 0:02:35]}  Nbd7 {[%clk 0:02:53]} 14. Bg5 {[%clk 0:02:34]}  Nb6 {[%clk 0:02:46]} 15. Rad1 {[%clk 0:02:32]}  Nbd5 {[%clk 0:02:35]} 16. Bb1 {[%clk 0:02:26]}  g6 {[%clk 0:02:31]} 17. Ne5 {[%clk 0:02:21]}  Nxc3 {[%clk 0:02:24]} 18. bxc3 {[%clk 0:02:18]}  Qd5 {[%clk 0:02:09]} 19. Qh3 {[%clk 0:02:17]}  Qb3 {[%clk 0:01:47]} 20. Bxf6 {[%clk 0:02:15]}  Bxf6 {[%clk 0:01:43]} 21. Nd7 {[%clk 0:02:15]}  Bg7 {[%clk 0:01:43]} 22. Nc5 {[%clk 0:02:11]}  Bxg2 {[%clk 0:01:27]} 23. Kxg2 {[%clk 0:02:03]}  Qxa3 {[%clk 0:01:27]} 24. Be4 {[%clk 0:01:56]}  Rac8 {[%clk 0:00:58]} 25. Ra1 {[%clk 0:01:55]}  Qb2 {[%clk 0:00:58]} 26. Bb7 {[%clk 0:01:27]}  Rc7 {[%clk 0:00:26]} 27. Reb1 {[%clk 0:01:24]}  Qd2 {[%clk 0:00:21]} 28. Qe3 {[%clk 0:01:22]}  Bh6 {[%clk 0:00:07]} 29. Qxd2 {[%clk 0:01:19]}  Bxd2 {[%clk 0:00:08]} 30. Ne4 {[%clk 0:01:15]}  Bxc3 {[%clk 0:00:07]} 31. Nxc3 {[%clk 0:01:13]}  Rxc3 {[%clk 0:00:07]} 32. Bxa6 {[%clk 0:01:11]}  Rd3 {[%clk 0:00:06]} 33. Rd1 {[%clk 0:01:09]}  Rxd1 {[%clk 0:00:05]} 34. Rxd1 {[%clk 0:01:09]}  b4 {[%clk 0:00:06]} 35. Kf3 {[%clk 0:01:08]}  b3 {[%clk 0:00:04]} 36. Rb1 {[%clk 0:01:08]}  Rb8 {[%clk 0:00:03]} 37. Rb2 {[%clk 0:01:08]}  Rb6 {[%clk 0:00:02]} 38. Be2 {[%clk 0:01:06]}  Rb4 {[%clk 0:00:03]} 39. Ke3 {[%clk 0:01:06]}  Kg7 {[%clk 0:00:02]} 40. Bd1 {[%clk 0:01:07]}  e5 {[%clk 0:00:02]} 41. dxe5 {[%clk 0:01:05]}  Rh4 {[%clk 0:00:03]} 42. f4 {[%clk 0:01:02]}  f6 {[%clk 0:00:03]} 43. exf6+ {[%clk 0:00:59]}  Kxf6 {[%clk 0:00:04]} 44. Bxb3 {[%clk 0:00:59]}  Rh3+ {[%clk 0:00:04]} 45. Ke4 {[%clk 0:00:59]}  g5 {[%clk 0:00:04]} 46. fxg5+ {[%clk 0:00:53]}  Kxg5 {[%clk 0:00:05]} 47. Rg2+ {[%clk 0:00:50]}  Kh4 {[%clk 0:00:05]} 48. Be6 {[%clk 0:00:50]}  Ra3 {[%clk 0:00:03]} 49. h3 {[%clk 0:00:49]}  h5 {[%clk 0:00:04]} 50. Ke5 {[%clk 0:00:46]}  Re3+ {[%clk 0:00:04]} 51. Kf6 {[%clk 0:00:46]}  Rf3+ {[%clk 0:00:04]} 52. Bf5 {[%clk 0:00:46]}  Rg3 {[%clk 0:00:03]} 53. Rxg3 {[%clk 0:00:45]}  Kxg3 {[%clk 0:00:04]} 54. Kg5 {[%clk 0:00:46]}  h4 {[%clk 0:00:04]} 55. Bg4 {[%clk 0:00:45]}  Kf2 {[%clk 0:00:03]} 56. Kxh4 {[%clk 0:00:46]}  Ke3 {[%clk 0:00:04]} 57. Kg5 {[%clk 0:00:46]}  Kd4 {[%clk 0:00:05]} 58. Kf6 {[%clk 0:00:46]}  Kd5 {[%clk 0:00:05]} 59. h4 {[%clk 0:00:47]}  Kd6 {[%clk 0:00:06]} 60. h5 {[%clk 0:00:48]} 1-0


[Site "https://www.chess.com"]

[Event "Titled Tuesday Blitz July 13 2021"]
[White "Dowgird, Filip"]
[Black "Senthilkumar, Pranav"]
[WhiteFideId "1121235"]
[BlackFideId "2083477"]
[WhiteElo "2209"]
[BlackElo "2327"]
[Result "1-0"]
[Round "04"]
[TimeControl "180+1"]
[Date "2021.07.13"]
[WhiteClock "0:00:42"]
[BlackClock "0:01:21"]

1. d4 {[%clk 0:02:58]}  Nf6 {[%clk 0:02:58]} 2. Nf3 {[%clk 0:02:58]}  c5 {[%clk 0:02:56]} 3. c3 {[%clk 0:02:58]}  cxd4 {[%clk 0:02:56]} 4. cxd4 {[%clk 0:02:58]}  d5 {[%clk 0:02:56]} 5. Nc3 {[%clk 0:02:58]}  Nc6 {[%clk 0:02:56]} 6. Bg5 {[%clk 0:02:58]}  e6 {[%clk 0:02:56]} 7. e3 {[%clk 0:02:58]}  h6 {[%clk 0:02:54]} 8. Bh4 {[%clk 0:02:56]}  Be7 {[%clk 0:02:54]} 9. a3 {[%clk 0:02:56]}  O-O {[%clk 0:02:54]} 10. Bd3 {[%clk 0:02:57]}  b6 {[%clk 0:02:54]} 11. O-O {[%clk 0:02:55]}  Bb7 {[%clk 0:02:55]} 12. Rc1 {[%clk 0:02:52]}  Rc8 {[%clk 0:02:54]} 13. Qa4 {[%clk 0:02:53]}  Na5 {[%clk 0:02:54]} 14. Ne5 {[%clk 0:02:46]}  Nc4 {[%clk 0:02:40]} 15. Nxc4 {[%clk 0:02:33]}  dxc4 {[%clk 0:02:39]} 16. Bxc4 {[%clk 0:02:29]}  Nd5 {[%clk 0:02:25]} 17. Bxd5 {[%clk 0:02:28]}  Bxd5 {[%clk 0:02:21]} 18. Bxe7 {[%clk 0:02:27]}  Qxe7 {[%clk 0:02:21]} 19. Nxd5 {[%clk 0:02:10]}  exd5 {[%clk 0:02:22]} 20. Qa6 {[%clk 0:02:10]}  Qd7 {[%clk 0:02:14]} 21. h3 {[%clk 0:02:05]}  Rc7 {[%clk 0:02:13]} 22. Rxc7 {[%clk 0:01:45]}  Qxc7 {[%clk 0:02:14]} 23. Qb5 {[%clk 0:01:41]}  Rd8 {[%clk 0:02:12]} 24. Qb3 {[%clk 0:01:36]}  Rd6 {[%clk 0:02:09]} 25. Rd1 {[%clk 0:01:22]}  Qc6 {[%clk 0:02:07]} 26. Rd2 {[%clk 0:01:14]}  Qc1+ {[%clk 0:02:05]} 27. Qd1 {[%clk 0:01:14]}  Qc7 {[%clk 0:02:04]} 28. Rc2 {[%clk 0:01:05]}  Rc6 {[%clk 0:02:04]} 29. Rxc6 {[%clk 0:01:05]}  Qxc6 {[%clk 0:02:05]} 30. Qb3 {[%clk 0:00:55]}  Qc1+ {[%clk 0:02:03]} 31. Kh2 {[%clk 0:00:55]}  Qc7+ {[%clk 0:01:37]} 32. g3 {[%clk 0:00:55]}  Qc6 {[%clk 0:01:37]} 33. Qc3 {[%clk 0:00:54]}  Qf6 {[%clk 0:01:36]} 34. Kg2 {[%clk 0:00:54]}  Qf5 {[%clk 0:01:35]} 35. g4 {[%clk 0:00:51]}  Qe4+ {[%clk 0:01:35]} 36. Kg3 {[%clk 0:00:52]}  h5 {[%clk 0:01:34]} 37. Qc8+ {[%clk 0:00:48]}  Kh7 {[%clk 0:01:33]} 38. Qf5+ {[%clk 0:00:46]}  Qxf5 {[%clk 0:01:29]} 39. gxf5 {[%clk 0:00:47]}  Kh6 {[%clk 0:01:28]} 40. Kf4 {[%clk 0:00:45]}  f6 {[%clk 0:01:24]} 41. h4 {[%clk 0:00:43]}  a6 {[%clk 0:01:21]} 42. f3 {[%clk 0:00:42]}  b5 {[%clk 0:01:21]} 43. e4 {[%clk 0:00:42]} 1-0


[Site "https://www.chess.com"]

[Event "Titled Tuesday Blitz July 13 2021"]
[White "Erdogdu, Mert"]
[Black "Abdusattorov, Nodirbek"]
[WhiteFideId "6301495"]
[BlackFideId "14204118"]
[WhiteElo "2485"]
[BlackElo "2662"]
[Result "0-1"]
[Round "04"]
[TimeControl "180+1"]
[Date "2021.07.13"]
[WhiteClock "0:00:18"]
[BlackClock "0:00:54"]

1. e4 {[%clk 0:03:00]}  e6 {[%clk 0:02:57]} 2. d4 {[%clk 0:03:00]}  d5 {[%clk 0:02:58]} 3. exd5 {[%clk 0:03:01]}  exd5 {[%clk 0:02:58]} 4. c4 {[%clk 0:03:02]}  Nf6 {[%clk 0:02:56]} 5. Nc3 {[%clk 0:03:03]}  Bb4 {[%clk 0:02:54]} 6. Bd3 {[%clk 0:03:03]}  O-O {[%clk 0:02:53]} 7. Ne2 {[%clk 0:03:03]}  dxc4 {[%clk 0:02:53]} 8. Bxc4 {[%clk 0:03:04]}  Nc6 {[%clk 0:02:54]} 9. O-O {[%clk 0:03:04]}  Bg4 {[%clk 0:02:55]} 10. a3 {[%clk 0:03:01]}  Ba5 {[%clk 0:02:53]} 11. d5 {[%clk 0:02:54]}  Ne5 {[%clk 0:02:51]} 12. Ba2 {[%clk 0:02:54]}  Re8 {[%clk 0:02:48]} 13. Qa4 {[%clk 0:02:24]}  Bb6 {[%clk 0:02:36]} 14. Ng3 {[%clk 0:02:13]}  Qd7 {[%clk 0:02:17]} 15. Qc2 {[%clk 0:01:53]}  Nh5 {[%clk 0:02:06]} 16. Nce4 {[%clk 0:01:33]}  Nxg3 {[%clk 0:01:25]} 17. Nxg3 {[%clk 0:01:32]}  h5 {[%clk 0:01:24]} 18. Bf4 {[%clk 0:00:50]}  Ng6 {[%clk 0:01:16]} 19. Bg5 {[%clk 0:00:41]}  h4 {[%clk 0:01:14]} 20. d6 {[%clk 0:00:35]}  hxg3 {[%clk 0:01:11]} 21. Qxg6 {[%clk 0:00:32]}  gxf2+ {[%clk 0:01:09]} 22. Kh1 {[%clk 0:00:32]}  Be6 {[%clk 0:00:56]} 23. Qh5 {[%clk 0:00:22]}  Bxa2 {[%clk 0:00:54]} 24. Rxa2 {[%clk 0:00:23]}  Qb5 {[%clk 0:00:53]} 25. Raa1 {[%clk 0:00:20]}  Qxf1+ {[%clk 0:00:53]} 26. Rxf1 {[%clk 0:00:18]}  Re1 {[%clk 0:00:54]} 0-1


[Site "https://www.chess.com"]

[Event "Titled Tuesday Blitz July 13 2021"]
[White "Flores Quillas, Diego Saul Rodri"]
[Black "Pridorozhni, Aleksei"]
[WhiteFideId "3822508"]
[BlackFideId "4127870"]
[WhiteElo "2071"]
[BlackElo "2565"]
[Result "0-1"]
[Round "04"]
[TimeControl "180+1"]
[Date "2021.07.13"]
[WhiteClock "0:00:03"]
[BlackClock "0:01:09"]

1. e4 {[%clk 0:03:00]}  c5 {[%clk 0:02:59]} 2. Nf3 {[%clk 0:02:55]}  e5 {[%clk 0:02:58]} 3. Nxe5 {[%clk 0:02:49]}  Qe7 {[%clk 0:02:57]} 4. Nf3 {[%clk 0:02:47]}  Qxe4+ {[%clk 0:02:55]} 5. Be2 {[%clk 0:02:45]}  Nf6 {[%clk 0:02:52]} 6. O-O {[%clk 0:02:43]}  Be7 {[%clk 0:02:49]} 7. Re1 {[%clk 0:02:41]}  Qc6 {[%clk 0:02:41]} 8. Ne5 {[%clk 0:01:44]}  Qc7 {[%clk 0:02:39]} 9. Bc4 {[%clk 0:01:45]}  d5 {[%clk 0:02:30]} 10. Bb5+ {[%clk 0:01:43]}  Nc6 {[%clk 0:02:30]} 11. d4 {[%clk 0:01:18]}  O-O {[%clk 0:02:26]} 12. Bf4 {[%clk 0:01:18]}  Qb6 {[%clk 0:01:57]} 13. Bxc6 {[%clk 0:01:01]}  bxc6 {[%clk 0:01:58]} 14. Nxc6 {[%clk 0:01:01]}  Qxc6 {[%clk 0:01:58]} 15. Rxe7 {[%clk 0:01:01]}  cxd4 {[%clk 0:01:49]} 16. Qxd4 {[%clk 0:01:00]}  Qxc2 {[%clk 0:01:45]} 17. Na3 {[%clk 0:00:42]}  Qf5 {[%clk 0:01:37]} 18. Be5 {[%clk 0:00:37]}  Be6 {[%clk 0:01:25]} 19. Bxf6 {[%clk 0:00:36]}  Qxf6 {[%clk 0:01:25]} 20. Qxf6 {[%clk 0:00:34]}  gxf6 {[%clk 0:01:26]} 21. Rc1 {[%clk 0:00:32]}  Rfb8 {[%clk 0:01:25]} 22. b3 {[%clk 0:00:32]}  a5 {[%clk 0:01:25]} 23. Nc2 {[%clk 0:00:26]}  Rc8 {[%clk 0:01:24]} 24. Kf1 {[%clk 0:00:16]}  Ra6 {[%clk 0:01:24]} 25. Ke2 {[%clk 0:00:15]}  Rac6 {[%clk 0:01:24]} 26. Kd2 {[%clk 0:00:15]}  d4 {[%clk 0:01:14]} 27. Ra7 {[%clk 0:00:03]}  Rc3 {[%clk 0:01:09]} 0-1


[Site "https://www.chess.com"]